fUSD/lending_fUSD_20240701
["ID","MTS","AMOUNT","RATE_DAILY","PERIOD"]
[330795938,1719797459882,-1147.28604065,0.00020863,2]
[330795939,1719797459893,-151.15386855,0.00020866,2]
[330795940,1719797459905,-150.40483765,0.00020882,2]
[330795941,1719797459916,-2305.48886703,0.00020884,2]
[330795942,1719797459926,-624852.215343,0.000209,3]
[330795943,1719797459936,-356.51753324,0.000209,2]
[330795944,1719797459946,-151.0,0.00020903,2]
[330795945,1719797459956,-1332.34083443,0.00020904,2]
[330795946,1719797459966,-1332.34083443,0.00020915,2]
[330795947,1719797459977,-170.721357,0.00020918,2]
[330795948,1719797459988,-178.7306865,0.00020934,2]
[330795949,1719797459998,-154.73399104,0.00020934,2]
[330795950,1719797460011,-305.29813003,0.00020937,2]
[330795951,1719797460021,-2995.84731247,0.00020937,2]
[330795952,1719797460032,-600.21120432,0.00020943,2]
[330795953,1719797460042,-1139.0,0.00020943,2]
[330795954,1719797460053,-1140.73869847,0.00020948,2]
[330795955,1719797460063,-704.28638261,0.0002097,2]
[330795956,1719797460074,-2305.48886703,0.00020972,2]
[330795957,1719797460092,-280.45252236,0.00020976,2]
[330795958,1719797460102,-154.72084912,0.00020978,2]
[330795959,1719797460114,-179.26039168,0.0002098,2]
[330795960,1719797460124,-151.72565059,0.00020984,2]
[330795961,1719797460135,-280.45252236,0.00020986,2]
[330795962,1719797460147,-2305.48886703,0.00020989,2]
[330795963,1719797460157,-1000.0,0.00020998,4]
[330795964,1719797460167,-225.15915694,0.00021,2]
[330795965,1719797460177,-249674.59850682,0.00021,3]
[330795966,1719797460434,-171547.51083276,0.00021,3]
[330795967,1719797460445,-1099.10580547,0.00021,2]
[330795968,1719797460456,-1500.0,0.00021,10]
[330795969,1719797460466,-20181.60329825,0.00021,3]
[330795970,1719797460476,-312.0,0.00021,2]
[330795971,1719797460487,-312.0,0.00021,2]
[330795972,1719797460497,-1199.0,0.00021,9]
[330795973,1719797460511,-1250.0,0.00021,2]
[330795974,1719797460526,-203.02303,0.00021,2]
[330795975,1719797460537,-154.32554551,0.00021002,2]
[330795976,1719797460547,-2995.84731247,0.00021002,2]
[330795977,1719797460559,-166.66666666,0.00021005,2]
[330795978,1719797460570,-1332.34083443,0.00021015,2]
[330795979,1719797460580,-159.54771761,0.0002103,2]
[330795980,1719797460591,-4491.3238857,0.00021036,2]
[330795981,1719797460604,-178.7306865,0.00021044,2]
[330795982,1719797460615,-213.0,0.0002105,2]
[330795983,1719797460626,-215.0,0.0002105,2]
[330795984,1719797460637,-473.60074268,0.00021067,2]
[330795985,1719797460647,-50000.0,0.0002107,2]
[330795986,1719797460658,-400.0,0.0002107,2]
[330795987,1719797460669,-300.0,0.0002107,2]
[330795988,1719797460681,-155.77732902,0.00021071,2]
[330795989,1719797460692,-178.7306865,0.00021072,2]
[330795990,1719797460705,-180.882048,0.00021089,2]
[330795991,1719797460716,-151.712675,0.00021089,2]
[330795992,1719797460727,-5044.509946,0.00021089,2]
[330795993,1719797460737,-354.35955,0.00021089,2]
[330795994,1719797460747,-473.017733,0.00021089,2]
[330795995,1719797460759,-1898.689493,0.00021089,2]
[330795996,1719797460772,-7594.757969,0.00021089,2]
[330795997,1719797460782,-152.39083855,0.00021091,2]
[330795998,1719797460794,-506.673902,0.00021096,2]
[330795999,1719797460804,-166.66666666,0.00021104,2]
[330796000,1719797460815,-218.18912667,0.00021105,2]
[330796001,1719797460825,-600.21120432,0.00021105,2]
[330796002,1719797460836,-379.3555703,0.00021128,2]
[330796003,1719797460846,-154.73399104,0.00021134,2]
[330796004,1719797460856,-700.74710893,0.00021135,2]
[330796005,1719797460867,-473.60074268,0.00021138,2]
[330796006,1719797460878,-1147.28604065,0.00021148,2]
[330796007,1719797460888,-154.72084912,0.0002116,2]
[330796008,1719797460899,-150.03162327,0.00021167,2]
[330796009,1719797460909,-159.5745171,0.00021169,2]
[330796010,1719797460920,-2995.84731247,0.00021169,2]
[330796011,1719797460930,-379.3555703,0.0002117,2]
[330796012,1719797461204,-166.66666666,0.00021177,2]
[330796013,1719797461217,-150.40483765,0.00021178,2]
[330796014,1719797461227,-166.66666666,0.00021186,2]
[330796015,1719797461236,-600.21120432,0.00021188,2]
[330796016,1719797461246,-150.0,0.00021197,2]
[330796017,1719797461256,-151.0,0.00021221,2]
[330796018,1719797461266,-1332.34083443,0.00021224,2]
[330796019,1719797461275,-201.52755862,0.00021235,2]
[330796020,1719797461284,-379.3555703,0.00021247,2]
[330796021,1719797461294,-170.721357,0.00021261,2]
[330796022,1719797461303,-178.7306865,0.0002127,2]
[330796023,1719797461314,-2305.48886703,0.00021278,2]
[330796024,1719797461323,-2995.84731247,0.00021303,2]
[330796025,1719797461332,-700.74710893,0.00021318,2]
[330796026,1719797461342,-161.14110779,0.00021322,2]
[330796027,1719797461351,-311.89459506,0.00021324,2]
[330796028,1719797461360,-280.45252236,0.00021326,2]
[330796029,1719797461369,-280.45252236,0.00021327,2]
[330796030,1719797461379,-500.0,0.00021329,2]
[330796031,1719797461388,-500.0,0.00021338,2]
[330796032,1719797461397,-218.18912667,0.00021341,2]
[330796033,1719797461406,-5044.509946,0.00021346,2]
[330796034,1719797461416,-354.35955,0.00021346,2]
[330796035,1719797461425,-473.017733,0.00021346,2]
[330796036,1719797461435,-1898.689493,0.00021346,2]
[330796037,1719797461445,-7594.757969,0.00021346,2]
[330796038,1719797461457,-500.0,0.00021346,2]
[330796039,1719797461466,-218.18912667,0.00021348,2]
[330796040,1719797461475,-500.0,0.00021355,2]
[330796041,1719797461484,-159.5745171,0.00021361,2]
[330796042,1719797461494,-500.0,0.00021364,2]
[330796043,1719797461503,-500.0,0.00021373,2]
[330796044,1719797461518,-155.77732902,0.00021373,2]
[330796045,1719797461528,-305.29813003,0.00021377,2]
[330796046,1719797461537,-500.0,0.00021382,2]
[330796047,1719797461546,-159.54771761,0.00021386,2]
[330796048,1719797461557,-500.0,0.0002139,2]
[330796049,1719797461567,-500.0,0.00021399,2]
[330796050,1719797461576,-500.0,0.00021408,2]
[330796051,1719797461586,-500.0,0.00021417,2]
[330796052,1719797461595,-155.77732902,0.00021419,2]
[330796053,1719797461608,-154.81279976,0.00021424,2]
[330796054,1719797461619,-500.0,0.00021426,2]
[330796055,1719797461628,-500.0,0.00021434,2]
[330796056,1719797461638,-500.0,0.00021434,2]
[330796057,1719797461648,-166.66666666,0.00021437,2]
[330796058,1719797461658,-280.45252236,0.00021442,2]
[330796059,1719797461668,-151.72565059,0.00021443,2]
[330796060,1719797461677,-500.0,0.00021443,2]
[330796061,1719797461686,-500.0,0.00021443,2]
[330796062,1719797461695,-500.0,0.00021452,2]
[330796063,1719797461705,-500.0,0.00021452,2]
[330796064,1719797461714,-600.21120432,0.00021459,2]
[330796065,1719797461724,-151.72565059,0.00021461,2]
[330796066,1719797461733,-280.45252236,0.00021466,2]
[330796067,1719797461743,-201.52755862,0.00021466,2]
[330796068,1719797461752,-2305.48886703,0.00021488,2]
[330796069,1719797461763,-1199.0,0.000215,9]
[330796070,1719797461771,-154.73399104,0.00021501,2]
[330796071,1719797461780,-2995.84731247,0.00021505,2]
[330796072,1719797461791,-154.35372058,0.0002152,2]
[330796073,1719797461800,-700.74710893,0.00021526,2]
[330796074,1719797461809,-213.0,0.0002154,2]
[330796075,1719797461819,-215.0,0.0002154,2]
[330796076,1719797461828,-151.0,0.0002154,2]
[330796077,1719797461838,-1140.73869847,0.0002154,2]
[330796078,1719797461847,-166.6666667,0.00021557,2]
[330796079,1719797461857,-161.63695893,0.00021577,2]
[330796080,1719797461866,-197.0,0.000216,3]
[330796081,1719797461875,-700.74710893,0.00021603,2]
[330796082,1719797461885,-170.721357,0.00021604,2]
[330796083,1719797461894,-180.882048,0.00021604,2]
[330796084,1719797461903,-151.712675,0.00021604,2]
[330796085,1719797461912,-5044.509946,0.00021604,2]
[330796086,1719797461922,-354.35955,0.00021604,2]
[330796087,1719797461931,-473.017733,0.00021604,2]
[330796088,1719797461940,-1898.689493,0.00021604,2]
[330796089,1719797461949,-7594.757969,0.00021604,2]
[330796090,1719797461960,-166.66666668,0.00021607,2]
[330796091,1719797461969,-156.41998447,0.00021625,2]
[330796092,1719797461978,-500.0,0.00021626,2]
[330796093,1719797461988,-500.0,0.00021635,2]
[330796094,1719797461998,-2000.0,0.00021643,2]
[330796095,1719797462008,-403.69,0.00021644,2]
[330796096,1719797462017,-163.43,0.00021644,2]
[330796097,1719797462026,-155.43,0.00021644,2]
[330796098,1719797462036,-900.7,0.00021644,2]
[330796099,1719797462046,-500.0,0.00021644,2]
[330796100,1719797462058,-161.14110779,0.00021658,2]
[330796101,1719797462068,-379.3555703,0.00021659,2]
[330796102,1719797462077,-473.60074268,0.00021662,2]
[330796103,1719797462086,-280.45252236,0.00021691,2]
[330796104,1719797462096,-2995.84731247,0.00021697,2]
[330796105,1719797462106,-200.0,0.000217,7]
[330796106,1719797462116,-1147.28604065,0.000217,2]
[330796107,1719797462126,-150.0,0.00021702,2]
[330796108,1719797462136,-700.74710893,0.00021703,2]
[330796109,1719797462145,-154.73399104,0.00021712,2]
[330796110,1719797462154,-4491.3238857,0.00021718,2]
[330796111,1719797462163,-2258.0,0.00021721,2]
[330796112,1719797462173,-151.72565059,0.00021722,2]
[330796113,1719797462183,-150.40483765,0.00021734,2]
[330796114,1719797462192,-150.40483765,0.00021749,2]
[330796115,1719797462202,-154.73399104,0.0002175,2]
[330796116,1719797462211,-1332.34083443,0.0002175,2]
[330796117,1719797462220,-1147.28604065,0.00021755,2]
[330796118,1719797462230,-1140.73869847,0.00021763,2]
[330796119,1719797462239,-700.74710893,0.00021765,2]
[330796120,1719797462249,-600.21120432,0.00021774,2]
[330796121,1719797462260,-900.0,0.000218,7]
[330796122,1719797462269,-800.0,0.00021808,2]
[330796123,1719797462278,-800.0,0.00021808,2]
[330796124,1719797462287,-800.0,0.00021808,2]
[330796125,1719797462297,-800.0,0.00021808,2]
[330796126,1719797462306,-700.74710893,0.00021818,2]
[330796127,1719797462315,-280.45252236,0.00021826,2]
[330796128,1719797462326,-150.0,0.00021831,2]
[330796129,1719797462335,-150.0,0.00021831,2]
[330796130,1719797462345,-599.45,0.00021837,2]
[330796131,1719797462355,-201.52755862,0.00021837,2]
[330796132,1719797462364,-379.3555703,0.00021841,2]
[330796133,1719797462374,-379.3555703,0.00021849,2]
[330796134,1719797462383,-600.21120432,0.00021854,2]
[330796135,1719797462393,-151.72565059,0.00021856,2]
[330796136,1719797462402,-600.21120432,0.00021857,2]
[330796137,1719797462411,-151.0,0.00021859,2]
[330796138,1719797462420,-150.40483765,0.00021866,2]
[330796139,1719797462430,-305.29813003,0.00021873,2]
[330796140,1719797462439,-473.60074268,0.00021886,2]
[330796141,1719797462449,-39200.0,0.000219,2]
[330796142,1719797462458,-155.0,0.000219,2]
[330796143,1719797462468,-155.77732902,0.00021913,2]
[330796144,1719797462477,-2536.88,0.00021918,2]
[330796145,1719797462487,-349.03,0.00021918,2]
[330796146,1719797462496,-151.0,0.00021918,2]
[330796147,1719797462507,-151.0,0.00021918,2]
[330796148,1719797462517,-151.0,0.00021918,2]
[330796149,1719797462530,-151.0,0.00021918,2]
[330796150,1719797462539,-151.0,0.00021918,2]
[330796151,1719797462548,-151.0,0.00021918,2]
[330796152,1719797462558,-151.0,0.00021918,2]
[330796153,1719797462569,-151.0,0.00021918,2]
[330796154,1719797462578,-151.0,0.00021918,2]
[330796155,1719797462588,-151.0,0.00021918,2]
[330796156,1719797462597,-151.0,0.00021918,2]
[330796157,1719797462608,-151.0,0.00021918,2]
[330796158,1719797462618,-151.0,0.00021918,2]
[330796159,1719797462627,-151.0,0.00021918,2]
[330796160,1719797462636,-151.0,0.00021918,2]
[330796161,1719797462645,-151.0,0.00021918,2]
[330796162,1719797462654,-164.91626,0.00021918,2]
[330796163,1719797462664,-211.95,0.00021918,2]
[330796164,1719797462673,-500.0,0.00021918,2]
[330796165,1719797462682,-500.0,0.00021918,2]
[330796166,1719797462691,-500.0,0.00021918,2]
[330796167,1719797462701,-500.0,0.00021918,2]
[330796168,1719797462710,-500.0,0.00021918,2]
[330796169,1719797462719,-500.0,0.00021918,2]
[330796170,1719797462728,-150.0,0.00021918,2]
[330796171,1719797462737,-150.0,0.00021918,2]
[330796172,1719797462747,-150.0,0.00021918,2]
[330796173,1719797462757,-150.0,0.00021918,2]
[330796174,1719797462766,-150.0,0.00021918,2]
[330796175,1719797462775,-150.0,0.00021918,2]
[330796176,1719797462784,-150.0,0.00021918,2]
[330796177,1719797462793,-150.0,0.00021918,2]
[330796178,1719797462803,-163.07529068,0.00021918,2]
[330796179,1719797462812,-700.74710893,0.00021924,2]
[330796180,1719797462822,-169.30618066,0.00021946,2]
[330796181,1719797462831,-150.40483765,0.00021965,2]
[330796182,1719797462841,-400.0,0.0002197,2]
[330796183,1719797462850,-300.0,0.0002197,2]
[330796184,1719797462860,-178.7306865,0.00021981,2]
[330796185,1719797462869,-1000.0,0.00021998,5]
[330796186,1719797462880,-43094.92995445,0.00022,5]
[330796187,1719797462890,-11009.0918915,0.00022,3]
[330796188,1719797462900,-1000.0,0.00022,2]
[330796189,1719797462909,-1000.0,0.00022,2]
[330796190,1719797462918,-1000.0,0.00022,2]
[330796191,1719797462927,-1000.0,0.00022,2]
[330796192,1719797462937,-78095.86522545,0.00022,2]
[330796193,1719797462946,-382.0,0.00022,2]
[330796194,1719797462955,-792.83034911,0.00022,2]
[330796195,1719797462964,-881.65285847,0.00022,4]
[330796196,1719797462974,-900.0,0.00022,23]
[330796197,1719797462984,-312.0,0.00022,2]
[330796198,1719797462993,-312.0,0.00022,2]
[330796199,1719797463002,-500.0,0.00022,2]
[330796200,1719797463016,-1199.0,0.00022,10]
[330796201,1719797463025,-30041.8574763,0.00022,4]
[330796202,1719797463034,-201.52755862,0.00022019,2]
[330796203,1719797463047,-213.0,0.0002202,2]
[330796204,1719797463057,-215.0,0.0002202,2]
[330796205,1719797463067,-1332.34083443,0.00022047,2]
[330796206,1719797463076,-600.21120432,0.00022059,2]
[330796207,1719797463085,-166.66666666,0.00022076,2]
[330796208,1719797463095,-154.73399104,0.00022095,2]
[330796209,1719797463105,-166.66666666,0.00022119,2]
[330796210,1719797463115,-305.29813003,0.00022122,2]
[330796211,1719797463124,-473.60074268,0.00022129,2]
[330796212,1719797463134,-1332.34083443,0.00022131,2]
[330796213,1719797463144,-305.29813003,0.00022132,2]
[330796214,1719797463153,-280.45252236,0.00022138,2]
[330796215,1719797463163,-473.60074268,0.00022142,2]
[330796216,1719797463172,-159.54771761,0.00022156,2]
[330796217,1719797463181,-280.45252236,0.00022167,2]
[330796218,1719797463190,-201.52755862,0.00022172,2]
[330796219,1719797463200,-151.0,0.00022178,2]
[330796220,1719797463210,-154.81279976,0.00022189,2]
[330796221,1719797463219,-1332.34083443,0.00022198,2]
[330796222,1719797463229,-305.29813003,0.00022206,2]
[330796223,1719797463239,-150.0,0.00022206,2]
[330796224,1719797463248,-154.72084912,0.00022236,2]
[330796225,1719797463262,-600.21120432,0.00022252,2]
[330796226,1719797463272,-2995.84731247,0.00022257,2]
[330796227,1719797463281,-154.73399104,0.00022262,2]
[330796228,1719797463290,-152.39083855,0.0002227,2]
[330796229,1719797463300,-218.18912667,0.00022289,2]
[330796230,1719797463309,-166.66666666,0.00022291,2]
[330796231,1719797463318,-178.7306865,0.00022292,2]
[330796232,1719797463328,-600.21120432,0.00022295,2]
[330796233,1719797463337,-1140.73869847,0.00022297,2]
[330796234,1719797463346,-164350.81183273,0.000223,3]
[330796235,1719797463355,-934.0,0.000223,2]
[330796236,1719797463364,-218.18912667,0.00022314,2]
[330796237,1719797463374,-154.73399104,0.00022332,2]
[330796238,1719797463384,-218.18912667,0.00022352,2]
[330796239,1719797463394,-151.72565059,0.00022362,2]
[330796240,1719797463403,-155.77732902,0.00022363,2]
[330796241,1719797463412,-1147.28604065,0.00022391,2]
[330796242,1719797463422,-2995.84731247,0.00022399,2]
[330796243,1719797463431,-54588.96914024,0.000224,2]
[330796244,1719797463447,-195411.03085976,0.000224,2]
[330796245,1719797463457,-9339.26797442,0.000224,2]
[330796246,1719797463468,-5770.31202558,0.000224,2]
[330796247,1719797463479,-154.7,0.000224,31]
[330796248,1719797463489,-154.7,0.000224,31]
[330796249,1719797463499,-154.7,0.000224,31]
[330796250,1719797463512,-154.7,0.000224,31]
[330796251,1719797463523,-154.7,0.000224,31]
[330796252,1719797463534,-154.7,0.000224,31]
[330796253,1719797463549,-4491.3238857,0.000224,2]
[330796254,1719797463560,-311.89459506,0.000224,2]
[330796255,1719797463571,-2995.84731247,0.00022406,2]
[330796256,1719797463581,-305.29813003,0.00022416,2]
[330796257,1719797463590,-178.7306865,0.00022422,2]
[330796258,1719797463601,-166.66666666,0.00022437,2]
[330796259,1719797463610,-300.0,0.0002244,2]
[330796260,1719797463622,-700.74710893,0.00022461,2]
[330796261,1719797463631,-2000.0,0.00022465,2]
[330796262,1719797463641,-400.0,0.0002247,2]
[330796263,1719797463651,-300.0,0.0002247,2]
[330796264,1719797463661,-280.45252236,0.0002247,2]
[330796265,1719797463670,-1140.73869847,0.00022477,2]
[330796266,1719797463680,-23281.7469341,0.00022485,2]
[330796267,1719797463690,-17705.2019984,0.00022485,2]
[330796268,1719797463700,-12128.6570627,0.00022485,2]
[330796269,1719797463710,-6552.112127,0.00022485,2]
[330796270,1719797463720,-975.5671912,0.00022485,2]
[330796271,1719797463729,-5388.7432372,0.00022485,2]
[330796272,1719797463739,-4098.0081006,0.00022485,2]
[330796273,1719797463749,-2807.272964,0.00022485,2]
[330796274,1719797463760,-1227.66473274,0.00022485,2]
[330796275,1719797463772,-288.87309466,0.00022485,2]
[330796276,1719797463781,-225.8026908,0.00022485,2]
[330796277,1719797463791,-866.7990762,0.00022485,2]
[330796278,1719797463801,-866.7990762,0.00022485,2]
[330796279,1719797463811,-866.7990762,0.00022485,2]
[330796280,1719797463821,-866.7990762,0.00022485,2]
[330796281,1719797463832,-866.7990762,0.00022485,2]
[330796282,1719797463842,-154.73399104,0.00022489,2]
[330796283,1719797463852,-213.0,0.0002249,2]
[330796284,1719797463862,-215.0,0.0002249,2]
[330796285,1719797463871,-214.0,0.0002249,2]
[330796286,1719797463880,-866.7990762,0.00022491,2]
[330796287,1719797463890,-28858.2918698,0.00022492,2]
[330796288,1719797463899,-6679.4783738,0.00022492,2]
[330796289,1719797463909,-151.0,0.00022497,2]
[330796290,1719797463918,-78056.50997976,0.000225,120]
[330796291,1719797463930,-270.85233391,0.000225,120]
[330796292,1719797463941,-321.75774043,0.000225,120]
[330796293,1719797463952,-2403.80214793,0.000225,120]
[330796294,1719797463964,-1733.32325399,0.000225,120]
[330796295,1719797463975,-2523.02034378,0.000225,120]
[330796296,1719797463986,-2237.48317648,0.000225,120]
[330796297,1719797463997,-785.90990715,0.000225,120]
[330796298,1719797464010,-253.03900003,0.000225,120]
[330796299,1719797464021,-121500.32833821,0.000225,120]
[330796300,1719797464032,-671.11125443,0.000225,120]
[330796301,1719797464044,-4739.05881324,0.000225,120]
[330796302,1719797464055,-3503.31846915,0.000225,120]
[330796303,1719797464080,-731.90648871,0.00018,2]
[330796304,1719797464089,-731.90648871,0.00018,2]
[330796305,1719797464098,-339901.18003902,0.000225,120]
[330796306,1719797464548,-449.834,0.0001469,2]
[330796307,1719797464559,-495.40756549,0.00014898,3]
[330796308,1719797464570,-6.55263363,0.00014898,3]
[330796309,1719797464579,-151.0,0.00014967,2]
[330796310,1719797464588,-151.0,0.00014967,2]
[330796311,1719797464747,-179.00108779,0.0001499,2]
[330796312,1719797464759,-151.0,0.00015,2]
[330796313,1719797464769,-151.0,0.00015,2]
[330796314,1719797464779,-151.0,0.00015,2]
[330796315,1719797464788,-151.0,0.00015,2]
[330796316,1719797464798,-448.0,0.0001769,2]
[330796317,1719797464807,-731.90648871,0.00018,2]
[330796318,1719797464816,-731.90648871,0.00018,2]
[330796319,1719797464825,-731.90648871,0.00018,2]
[330796320,1719797464834,-731.90648871,0.00018,2]
[330796321,1719797464844,-731.90648871,0.00018,2]
[330796322,1719797464853,-731.90648871,0.00018,2]
[330796323,1719797464863,-731.90648871,0.00018,2]
[330796324,1719797464872,-731.90648871,0.00018,2]
[330796325,1719797464882,-731.90648871,0.00018,2]
[330796326,1719797464891,-888.75514855,0.00018717,2]
[330796327,1719797464901,-500.0,0.00020822,2]
[330796328,1719797464911,-2742.90625875,0.000225,120]
[330796329,1719797464972,-151.0,0.00015,2]
[330796330,1719797464982,-151.0,0.00015033,2]
[330796331,1719797464992,-151.0,0.000154,2]
[330796332,1719797465002,-731.90648871,0.00018,2]
[330796333,1719797465012,-500.0,0.00021918,2]
[330796334,1719797465021,-7063.86094095,0.000225,120]
[330796335,1719797465033,-91591.74829764,0.000225,120]
[330796336,1719797465044,-29367.66328928,0.000225,120]
[330796337,1719797465055,-14365.0072349,0.000225,120]
[330796338,1719797465067,-563.8784653,0.000225,120]
[330796339,1719797465078,-509.97006902,0.000225,120]
[330796340,1719797465089,-162765.24180118,0.000225,120]
[330796341,1719797465295,-504.86081099,0.00014343,3]
[330796342,1719797465305,-151.573852,0.00014967,2]
[330796343,1719797465315,-151.0,0.00015,2]
[330796344,1719797465324,-151.0,0.00015,2]
[330796345,1719797465333,-155.572117,0.00015,2]
[330796346,1719797465342,-152.946388,0.000157,2]
[330796347,1719797465352,-731.90648871,0.00018,2]
[330796348,1719797465361,-731.90648871,0.00018,2]
[330796349,1719797465370,-731.90648871,0.00018,2]
[330796350,1719797465379,-731.90648871,0.00018,2]
[330796351,1719797465388,-731.90648871,0.00018,2]
[330796352,1719797465396,-731.90648871,0.00018,2]
[330796353,1719797465406,-731.90648871,0.00018,2]
[330796354,1719797465415,-731.90648871,0.00018,2]
[330796355,1719797465424,-731.90648871,0.00018,2]
[330796356,1719797465433,-731.90648871,0.00018,2]
[330796357,1719797465442,-731.90648871,0.00018,2]
[330796358,1719797465451,-448.0,0.0002069,2]
[330796359,1719797465460,-240.21,0.000224,31]
[330796360,1719797465469,-13737.02976123,0.000225,120]
[330796361,1719797465481,-1286.522828,0.000225,120]
[330796362,1719797465492,-23389.56210799,0.000225,120]
[330796363,1719797465503,-641.61544197,0.000225,120]
[330796364,1719797465517,-188487.43760621,0.000225,120]
[330796365,1719797465564,-306.40574327,0.0001469,2]
[330796366,1719797465576,-350.598,0.0001469,2]
[330796367,1719797465589,-155.99625673,0.0001469,2]
[330796368,1719797465600,-151.573852,0.00015,2]
[330796369,1719797465612,-149.37997462,0.00015,2]
[330796370,1719797465626,-2.19387738,0.00015,2]
[330796371,1719797465637,-731.90648871,0.00018,2]
[330796372,1719797465646,-142.1496339,0.00018,2]
[330796373,1719797465659,-589.75685481,0.00018,2]
[330796374,1719797465668,-1536.81128394,0.000225,120]
[330796375,1719797465678,-1401.65881199,0.000225,120]
[330796376,1719797465689,-277.77979186,0.000225,120]
[330796377,1719797465701,-1151.7217099,0.000225,120]
[330796378,1719797465712,-990.72116562,0.000225,120]
[330796379,1719797465724,-1464.15343411,0.000225,120]
[330796380,1719797465735,-278.88464835,0.000225,120]
[330796383,1719797549377,335.14892358,0.00022,120]
[330796404,1719798481051,467.05,0.00010935,2]
[330796406,1719798536609,19879.62733478,0.00010935,2]
[330796407,1719798536746,554.70037003,0.00010935,2]
[330796408,1719798538329,155.37041731,0.00010935,2]
[330796409,1719798543772,5863.71140603,0.00011199,2]
[330796410,1719798563812,7575.75705109,0.00010935,2]
[330796411,1719798565107,-1286.90359013,0.00012302,2]
[330796412,1719798565128,-250.0,0.00012852,2]
[330796413,1719798565149,-1300.74390987,0.00012918,2]
[330796414,1719798632059,-636.45743893,0.00012818,2]
[330796416,1719798632073,-261.15578167,0.00012818,2]
[330796425,1719798632343,-1132.51470823,0.00012818,2]
[330796426,1719798632354,-280.44188,0.00012818,2]
[330796427,1719798632366,-12790.34951301,0.00012818,2]
[330796428,1719798632375,-838.25609013,0.00012918,2]
[330796429,1719798632384,-160.42706468,0.00012949,2]
[330796430,1719798632395,-467.05,0.00013199,2]
[330796431,1719798632403,-1441.59247643,0.00013413,2]
[330796432,1719798632414,-1756.58752357,0.00013413,2]
[330796433,1719798632423,-1000.0,0.0001343,2]
[330796434,1719798632433,-250.0,0.0001343,2]
[330796435,1719798632443,-518.2,0.00013433,2]
[330796436,1719798632452,-518.2,0.0001347,2]
[330796437,1719798632461,-518.2,0.00013507,2]
[330796438,1719798632470,-431.96964261,0.00013516,2]
[330796439,1719798632480,-305.46211555,0.00013543,2]
[330796440,1719798632489,-399.36367725,0.00013543,2]
[330796441,1719798632498,-518.2,0.00013544,2]
[330796442,1719798632508,-518.2,0.00013581,2]
[330796443,1719798632517,-150.0,0.00013617,2]
[330796444,1719798632527,-518.2,0.00013618,2]
[330796445,1719798632537,-518.2,0.00013655,2]
[330796446,1719798632546,-518.2,0.00013691,2]
[330796447,1719798632556,-1091.21,0.00013699,2]
[330796448,1719798632566,-251.7,0.00013699,2]
[330796449,1719798632576,-168.55,0.00013699,2]
[330796450,1719798632586,-518.2,0.00013728,2]
[330796451,1719798632595,-530.67794247,0.00013759,2]
[330796452,1719798632604,-351.280297,0.00013765,2]
[330796453,1719798632616,-166.919703,0.00013765,2]
[330796454,1719798632626,-405.96606779,0.00013802,2]
[330796455,1719798632640,-112.23393221,0.00013802,2]
[330796456,1719798632651,-266.29859701,0.00013802,2]
[330796458,1719798632660,-518.2,0.00013839,2]
[330796460,1719798632669,-1232.55,0.00013849,2]
[330796462,1719798632678,-2546.52,0.00013849,2]
[330796464,1719798632687,-193.73858537,0.00013849,2]
[330796465,1719798632697,-546.49143985,0.00013849,2]
[330796466,1719798632706,-150.0,0.00013863,2]
[330796467,1719798632717,-518.2,0.00013876,2]
[330796468,1719798632726,-577.97,0.00013889,2]
[330796469,1719798632736,-150.99,0.00013889,2]
[330796470,1719798632746,-159.5658867,0.00013889,2]
[330796471,1719798632755,-158.79370958,0.00013889,2]
[330796472,1719798632765,-234.02,0.00013899,2]
[330796473,1719798632774,-275.13702135,0.00013899,2]